bitfinex-derivatives/quotes_BNBF0:USTF0_20260110
["timestamp","ask_amount","ask_price","bid_price","bid_amount"]
[1768070568120,0.19045221,914.17,913.09,0.68765917]
[1768070568316,0.19045221,914.17,912.8,0.809888]
[1768070568518,0.19045221,914.17,912.81,0.6874051]
[1768070568718,0.19045221,914.17,912.82,0.6874051]
[1768070568917,0.19045221,914.17,912.83,0.6874051]
[1768070569121,0.19045221,914.17,912.84,0.6874051]
[1768070569320,0.19045221,914.17,912.85,0.6874051]
[1768070569517,0.19045221,914.17,912.86,0.6874051]
[1768070569722,0.19045221,914.17,912.87,1.4972931]
[1768070569923,0.19045221,914.17,912.88,0.6874051]
[1768070570119,0.19045221,914.17,912.89,0.6874051]
[1768070570419,0.19045221,914.17,912.9,0.6874051]
[1768070570619,0.19045221,914.17,912.91,0.6874051]
[1768070570920,0.19045221,914.17,912.92,0.6874051]
[1768070571121,0.19045221,914.17,912.93,0.6874051]
[1768070571326,0.19045221,914.17,912.94,0.6874051]
[1768070571521,0.19045221,914.17,912.95,0.6874051]
[1768070571724,0.19045221,914.17,912.96,0.6874051]
[1768070571919,0.19045221,914.17,912.97,0.6874051]
[1768070572224,0.19045221,914.17,912.98,0.6874051]
[1768070572524,0.19045221,914.17,912.99,0.6874051]
[1768070572720,0.19045221,914.17,913.0,0.6874051]
[1768070572924,0.19045221,914.17,913.01,0.6874051]
[1768070573120,0.19045221,914.17,913.02,0.6874051]
[1768070573320,0.19045221,914.17,913.03,0.6874051]
[1768070573522,0.19045221,914.17,913.04,0.6874051]
[1768070573724,0.19045221,914.17,913.05,0.6874051]
[1768070573922,0.19045221,914.17,913.06,0.6874051]
[1768070574124,0.19045221,914.17,913.07,0.6874051]
[1768070574328,0.19045221,914.17,913.08,0.6874051]
[1768070574626,0.19045221,914.17,913.09,0.6874051]
[1768070574827,0.19045221,914.17,913.1,0.6874051]
[1768070575025,0.19045221,914.17,913.11,0.6874051]
[1768070575223,0.19045221,914.17,913.12,0.6874051]
[1768070575428,0.19045221,914.17,913.13,0.6874051]
[1768070575625,0.19045221,914.17,912.8,0.809888]
[1768070575827,0.19045221,914.17,912.81,0.68682499]
[1768070576129,0.19045221,914.17,912.82,0.68682499]
[1768070576329,0.19045221,914.17,912.83,0.68682499]
[1768070576525,0.19045221,914.17,912.84,0.68682499]
[1768070576829,0.19045221,914.17,912.85,0.68682499]
[1768070577026,0.19045221,914.17,912.86,0.68682499]
[1768070577230,0.19045221,914.17,912.87,0.68682499]
[1768070577526,0.19045221,914.17,912.88,0.68682499]
[1768070577829,0.19045221,914.17,912.89,0.68682499]
[1768070578029,0.19045221,914.17,912.9,0.68682499]
[1768070578226,0.19045221,914.17,912.91,0.68682499]
[1768070578429,2.72679797,915.01,912.92,0.68682499]
[1768070578628,2.72679797,915.01,912.93,0.68682499]
[1768070578824,0.19040532,914.34,912.94,0.68682499]
[1768070579026,2.72679797,915.02,912.95,0.68682499]
[1768070579226,0.19040324,914.34,912.96,0.68682499]
[1768070579426,0.19040324,914.34,912.97,0.68682499]
[1768070579730,0.19040168,914.34,912.98,0.68682499]
[1768070580026,0.19040168,914.34,912.99,0.68682499]
[1768070580230,0.19040168,914.34,913.0,0.68682499]
[1768070580525,0.19040168,914.34,913.01,0.68682499]
[1768070580829,0.19040168,914.34,912.59,1.72]
[1768070580830,0.19035793,914.74,913.18,0.809888]
[1768070581026,0.19035793,914.74,913.22,0.809888]
[1768070581224,0.19035793,914.74,913.23,0.68682499]
[1768070581428,0.19035793,914.74,913.24,0.68682499]
[1768070581625,0.19035793,914.74,913.25,0.68682499]
[1768070581825,0.19035793,914.74,913.26,0.68682499]
[1768070582027,0.19035793,914.74,913.27,0.68682499]
[1768070582230,0.19035793,914.74,913.28,0.68682499]
[1768070582530,0.19035793,914.74,913.29,0.68682499]
[1768070582831,0.19035793,914.74,913.3,0.68682499]
[1768070583028,0.19035793,914.74,913.31,0.68682499]
[1768070583230,0.19035793,914.74,913.32,0.68429781]
[1768070583527,0.19035793,914.74,913.33,0.68429781]
[1768070583726,0.19035793,914.74,913.34,0.68429781]
[1768070583927,0.19035793,914.74,913.03,0.809888]
[1768070584128,0.19035793,914.74,913.04,0.68441601]
[1768070584332,0.19035793,914.74,913.05,0.68441601]
[1768070584532,0.19035793,914.74,913.06,0.68441601]
[1768070584732,0.19035793,914.74,913.07,0.68441601]
[1768070585032,0.19035793,914.74,913.08,0.68441601]
[1768070585233,0.19035793,914.74,913.09,0.68441601]
[1768070585533,0.19035793,914.74,913.1,0.68441601]
[1768070585734,0.19035793,914.74,913.11,0.68441601]
[1768070585929,0.19035793,914.74,913.12,0.68441601]
[1768070586143,0.19035793,914.74,913.13,0.68441601]
[1768070586333,0.19035793,914.74,913.14,0.68441601]
[1768070586630,0.19035793,914.74,913.15,0.68441601]
[1768070586932,0.19035793,914.74,913.16,0.68441601]
[1768070587134,0.19035793,914.74,913.17,0.68441601]
[1768070587334,0.19035793,914.74,913.18,0.68441601]
[1768070587530,0.19035793,914.74,913.19,0.68441601]
[1768070587730,0.19035793,914.74,913.2,0.68441601]
[1768070587931,0.19035793,914.74,913.21,0.68441601]
[1768070588129,0.19035793,914.74,913.22,0.68441601]
[1768070588330,0.19035793,914.74,913.23,0.68441601]
[1768070588533,0.19035793,914.74,913.24,0.68441601]
[1768070588829,0.19035793,914.74,913.25,0.68441601]
[1768070589134,0.19035793,914.74,913.26,0.68441601]
[1768070589434,0.19035793,914.74,913.27,0.68441601]
[1768070589630,0.19035793,914.74,913.28,0.68441601]
[1768070589834,0.19035793,914.74,913.29,0.68441601]
[1768070590034,0.19035793,914.74,913.3,0.68441601]
[1768070590231,0.19035793,914.74,913.2,1.692]
[1768070590232,0.19035793,914.74,913.31,0.68441601]
[1768070590432,0.19035793,914.74,913.32,0.68441601]
[1768070590633,0.19035793,914.74,913.33,0.68441601]
[1768070590835,0.19035793,914.74,913.34,0.68441601]
[1768070591136,0.19035793,914.74,913.35,0.68441601]
[1768070591334,0.19035793,914.74,913.36,0.68441601]
[1768070591533,0.19035793,914.74,913.37,0.68441601]
[1768070591737,0.19035793,914.74,913.38,0.68441601]
[1768070591934,0.19035793,914.74,913.2,1.692]
[1768070592138,0.19035793,914.74,913.21,0.68083534]
[1768070592439,0.19035793,914.74,913.22,0.68083534]
[1768070592635,0.19035793,914.74,913.23,0.68083534]
[1768070592835,0.19035793,914.74,913.24,0.68083534]
[1768070593037,0.19035793,914.74,913.25,0.68083534]
[1768070593233,0.19035793,914.74,913.26,0.68083534]
[1768070593438,0.19035793,914.74,913.2,1.692]
[1768070593439,0.19035793,914.74,913.27,0.68083534]
[1768070593633,0.19035793,914.74,913.28,0.68083534]
[1768070593834,0.19035793,914.74,913.29,0.68083534]
[1768070594039,0.19035793,914.74,913.3,0.68083534]
[1768070594240,0.19035793,914.74,913.31,0.68083534]
[1768070594437,0.19035793,914.74,913.32,0.68083534]
[1768070594739,0.19035793,914.74,913.33,0.68083534]
[1768070594939,0.19035793,914.74,913.34,0.68083534]
[1768070595237,0.19035793,914.74,913.35,0.68083534]
[1768070595540,0.19035793,914.74,913.2,1.692]
[1768070595841,0.19035793,914.74,913.21,0.68159676]
[1768070596136,0.19035793,914.74,913.22,0.68159676]
[1768070596439,0.19035793,914.74,913.2,1.692]
[1768070596440,0.19035793,914.74,913.23,0.68159676]
[1768070596639,0.19035793,914.74,913.24,0.68159676]
[1768070596836,0.19035793,914.74,913.25,0.68159676]
[1768070597139,0.19035793,914.74,913.26,0.68159676]
[1768070597340,0.19035793,914.74,913.27,0.68159676]
[1768070597537,0.19035793,914.74,913.28,0.68159676]
[1768070597739,0.19035793,914.74,913.29,0.68159676]
[1768070597940,0.19035793,914.74,913.3,0.68159676]
[1768070598137,0.19035793,914.74,913.31,0.68159676]
[1768070598337,0.19035793,914.74,913.32,0.68159676]
[1768070598542,0.19035793,914.74,913.33,0.68159676]
[1768070598742,0.19035793,914.74,913.34,0.68159676]
[1768070598939,0.19035793,914.74,913.35,0.68159676]
[1768070599137,0.19035793,914.74,913.36,0.68159676]
[1768070599338,0.19035793,914.74,913.37,0.68159676]
[1768070599638,0.19035793,914.74,913.38,0.68159676]
[1768070599842,0.19035793,914.74,913.39,0.68159676]
[1768070600039,0.19035793,914.74,913.4,0.68159676]
[1768070600241,0.19035793,914.74,913.41,0.68159676]
[1768070600538,0.19035793,914.74,913.42,0.68159676]
[1768070600739,0.19035793,914.74,913.43,0.68159676]
[1768070600940,0.19035793,914.74,913.44,0.68159676]
[1768070601137,0.19035793,914.74,913.2,1.692]
[1768070601339,0.19035793,914.74,913.21,0.68258641]
[1768070601539,0.19035793,914.74,913.22,0.68258641]
[1768070601739,0.19035793,914.74,913.23,0.68258641]
[1768070601937,0.19035793,914.74,913.24,0.68258641]
[1768070602141,0.19035793,914.74,913.25,0.68258641]
[1768070602439,0.19035793,914.74,913.26,0.68258641]
[1768070602638,0.19035793,914.74,913.27,0.68258641]
[1768070602839,0.19035793,914.74,913.28,0.68258641]
[1768070603039,0.19035793,914.74,913.29,0.68258641]
[1768070603338,0.19035793,914.74,913.3,0.68258641]
[1768070603542,0.19035793,914.74,913.31,0.68258641]
[1768070603743,0.19035793,914.74,913.32,0.68258641]
[1768070603941,0.19035793,914.74,913.33,0.68258641]
[1768070604139,0.19035793,914.74,913.34,0.68258641]
[1768070604343,0.19035793,914.74,913.35,0.68258641]
[1768070604638,0.19035793,914.74,913.36,0.68258641]
[1768070604944,0.19035793,914.74,913.37,0.68258641]
[1768070605243,0.19035793,914.74,913.38,0.68258641]
[1768070605543,0.19035793,914.74,913.39,0.68258641]
[1768070605740,0.19035793,914.74,913.4,0.68258641]
[1768070605941,0.19035793,914.74,913.41,0.68258641]
[1768070606139,0.19035793,914.74,913.2,1.692]
[1768070606340,0.19035793,914.74,913.21,0.68298947]
[1768070606540,0.19035793,914.74,913.22,0.68298947]
[1768070606844,0.19035793,914.74,913.23,0.68298947]
[1768070607039,0.19035793,914.74,913.24,0.68298947]
[1768070607242,0.19035793,914.74,913.25,0.68298947]
[1768070607443,0.19035793,914.74,913.26,0.68298947]
[1768070607743,0.19035793,914.74,913.27,0.68298947]
[1768070607943,0.19035793,914.74,913.28,0.68298947]
[1768070608141,0.19035793,914.74,913.29,0.68298947]
[1768070608339,0.19035793,914.74,913.3,0.68298947]
[1768070608540,0.19035793,914.74,913.31,0.68298947]
[1768070608838,0.19035793,914.74,913.32,0.68298947]
[1768070609038,0.19035793,914.74,913.33,0.68298947]
[1768070609343,0.19035793,914.74,913.34,0.68298947]
[1768070609540,0.19035793,914.74,913.35,0.68298947]
[1768070609837,0.19035793,914.74,913.36,0.68298947]
[1768070610041,0.19035793,914.74,913.37,0.68298947]
[1768070610242,0.19035793,914.74,913.38,0.68298947]
[1768070610440,0.19035793,914.74,913.39,0.68298947]
[1768070610643,0.19035793,914.74,913.4,0.68298947]
[1768070610843,0.19035793,914.74,913.2,1.692]
[1768070611039,0.19035793,914.74,913.21,0.68334444]
[1768070611243,0.19035793,914.74,913.22,0.68334444]
[1768070611540,0.19035793,914.74,913.23,0.68334444]
[1768070611740,0.19035793,914.74,913.24,0.68334444]
[1768070611943,0.19035793,914.74,913.25,0.68334444]
[1768070612140,0.19035793,914.74,913.26,0.68334444]
[1768070612444,0.19035793,914.74,913.27,0.68334444]
[1768070612641,0.19035793,914.74,913.28,0.68334444]
[1768070612842,0.19035793,914.74,913.29,0.68334444]
[1768070613145,0.19035793,914.74,913.3,0.68334444]
[1768070613443,0.19035793,914.74,913.31,0.68334444]
[1768070613640,0.19035793,914.74,913.32,0.68334444]
[1768070613840,0.19035793,914.74,913.2,1.692]
[1768070613841,0.19035793,914.74,913.33,0.68334444]
[1768070614144,0.19035793,914.74,913.34,0.68334444]
[1768070614340,0.19035793,914.74,913.2,1.692]
[1768070614542,0.19035793,914.74,913.21,0.68387613]
[1768070614741,0.19035793,914.74,913.22,0.68387613]
[1768070615041,0.19035793,914.74,913.23,0.68387613]
[1768070615245,0.19035793,914.74,913.2,1.692]
[1768070615246,0.19035793,914.74,913.24,0.68387613]
[1768070615441,0.19035793,914.74,913.25,0.68387613]
[1768070615643,0.19035793,914.74,913.26,0.68387613]
[1768070615947,0.19035793,914.74,913.27,0.68387613]
[1768070616247,0.19035793,914.74,913.28,0.68387613]
[1768070616546,0.19035793,914.74,913.29,0.68387613]
[1768070616743,0.19035793,914.74,913.3,0.68387613]
[1768070616948,0.19035793,914.74,913.31,0.68387613]
[1768070617146,0.19035793,914.74,913.32,0.68387613]
[1768070617343,0.19035793,914.74,913.33,0.68387613]
[1768070617643,0.19035793,914.74,913.34,0.68387613]
[1768070617944,0.19035793,914.74,913.35,0.68387613]
[1768070618144,0.19035793,914.74,913.36,0.68426246]
[1768070618347,0.19035793,914.74,913.2,1.692]
[1768070618643,0.19035793,914.74,913.21,0.68426246]
[1768070618844,0.19035793,914.74,913.22,0.68426246]
[1768070619043,0.19035793,914.74,913.23,0.68426246]
[1768070619342,0.19035793,914.74,913.24,0.68426246]
[1768070619543,0.19035793,914.74,913.25,0.68426246]
[1768070619743,0.19035793,914.74,913.26,0.68426246]
[1768070619942,0.19035793,914.74,913.27,0.68426246]
[1768070620243,0.19035793,914.74,913.28,0.68426246]
[1768070620446,0.19035793,914.74,913.29,0.68426246]
[1768070620646,0.19035793,914.74,913.3,0.68426246]
[1768070620847,0.19035793,914.74,913.31,0.68426246]
[1768070621047,0.19035793,914.74,913.32,0.68426246]
[1768070621247,0.19035793,914.74,913.33,0.68426246]
[1768070621447,0.19035793,914.74,913.34,0.68426246]
[1768070621647,0.19035793,914.74,913.35,0.68426246]
[1768070621946,0.19035793,914.74,913.36,0.68426246]
[1768070622142,0.19035793,914.74,913.37,0.68426246]
[1768070622443,0.19035793,914.74,913.38,0.68426246]
[1768070622743,0.19035793,914.74,913.39,0.68426246]
[1768070622947,0.19035793,914.74,913.2,1.692]
[1768070623146,0.19035793,914.74,913.21,0.68637257]
[1768070623342,0.19035793,914.74,913.22,0.68637257]
[1768070623546,0.19035793,914.74,913.23,0.68637257]
[1768070623745,0.19035793,914.74,913.24,0.68637257]
[1768070624044,0.19035793,914.74,913.25,0.68637257]
[1768070624249,0.19035793,914.74,913.26,0.68637257]
[1768070624445,0.19035793,914.74,913.2,1.692]
[1768070624446,0.19035793,914.74,913.27,0.68637257]
[1768070624643,0.19035793,914.74,913.28,0.68637257]
[1768070624948,0.19035793,914.74,913.29,0.68637257]
[1768070625149,0.19035793,914.74,913.3,0.68637257]
[1768070625349,0.19035793,914.74,913.31,0.68637257]
[1768070625549,0.19035793,914.74,913.32,0.68637257]
[1768070625750,0.19035793,914.74,913.33,0.68637257]
[1768070626045,0.19035793,914.74,913.34,0.68637257]
[1768070626250,0.19035793,914.74,913.35,0.68637257]
[1768070626450,0.19035793,914.74,913.36,0.68637257]
[1768070626651,0.19035793,914.74,913.37,0.68637257]
[1768070626848,0.19035793,914.74,913.38,0.68637257]
[1768070627045,0.19035793,914.74,913.39,0.68637257]
[1768070627347,0.19035793,914.74,913.4,0.68637257]
[1768070627548,0.19035793,914.74,913.41,0.68637257]
[1768070627745,0.19035793,914.74,913.42,0.68637257]
[1768070627950,0.19035793,914.74,913.43,0.68637257]
[1768070628145,0.19035793,914.74,913.44,0.68637257]
[1768070628350,0.19035793,914.74,913.45,0.68637257]
[1768070628649,0.19035793,914.74,913.42,2.12]
[1768070628650,0.19035793,914.74,913.46,0.68637257]
[1768070628846,0.19035793,914.74,913.47,0.68637257]
[1768070629146,0.19035793,914.74,913.48,0.68637257]
[1768070629346,0.19035793,914.74,913.49,0.68637257]
[1768070629550,0.19035793,914.74,913.5,0.68637257]
[1768070629751,0.19035793,914.74,913.42,2.12]
[1768070629948,0.19035793,914.74,913.43,0.68699949]
[1768070630145,0.19035793,914.74,913.44,0.68699949]
[1768070630350,0.19035793,914.74,913.45,0.68699949]
[1768070630548,0.19035793,914.74,913.46,0.68699949]
[1768070630752,0.19035793,914.74,913.47,0.68699949]
[1768070630951,0.19035793,914.74,913.48,0.68699949]
[1768070631152,0.19035793,914.74,913.49,0.68699949]
[1768070631452,0.19035793,914.74,913.5,0.68699949]
[1768070631749,0.19035793,914.74,913.51,0.68699949]
[1768070631948,0.19035793,914.74,913.42,2.12]
[1768070632148,0.19035793,914.74,913.43,0.68701527]
[1768070632353,0.19035793,914.74,913.44,0.68701527]
[1768070632553,0.19035793,914.74,913.45,0.68701527]
[1768070632854,0.19035793,914.74,913.46,0.68701527]
[1768070633054,0.19035793,914.74,913.47,0.68701527]
[1768070633251,0.19035793,914.74,913.48,0.68701527]
[1768070633452,0.19035793,914.74,913.49,0.68701527]
[1768070633754,0.19035793,914.74,913.5,0.68701527]
[1768070633957,0.19035793,914.74,913.51,0.68701527]
[1768070634156,0.19035793,914.74,913.42,2.12]
[1768070634451,0.19035793,914.74,913.43,0.68698661]
[1768070634656,0.19035793,914.74,913.44,0.68698661]
[1768070634854,0.19035793,914.74,913.45,0.68698661]
[1768070635051,0.19035793,914.74,913.46,0.68698661]
[1768070635252,0.19035793,914.74,913.47,0.68698661]
[1768070635456,0.19035793,914.74,913.48,0.68698661]
[1768070635654,0.19035793,914.74,913.49,0.68698661]
[1768070635854,0.19035793,914.74,913.42,2.12]
[1768070636058,0.19035793,914.74,913.43,0.68704008]
[1768070636256,0.19035793,914.74,913.44,0.68704008]
[1768070636454,0.19035793,914.74,913.45,0.68704008]
[1768070636658,0.19035793,914.74,913.46,0.68704008]
[1768070636856,0.19035793,914.74,913.42,2.12]
[1768070636857,0.19035793,914.74,913.47,0.68704008]
[1768070637057,0.19035793,914.74,913.48,0.68704008]
[1768070637254,0.19035793,914.74,913.49,0.68704008]
[1768070637454,0.19035793,914.74,913.5,0.68704008]
[1768070637756,0.19035793,914.74,913.42,2.12]
[1768070637954,0.19035793,914.74,913.43,0.68711299]
[1768070638155,0.19035793,914.74,913.44,0.68711299]
[1768070638360,0.19035793,914.74,913.45,0.68711299]
[1768070638559,0.19035793,914.74,913.46,0.68711299]
[1768070638759,0.19035793,914.74,913.47,0.68711299]
[1768070638958,0.19035793,914.74,913.48,0.68711299]
[1768070639158,0.19035793,914.74,913.49,0.68711299]
[1768070639357,0.19035793,914.74,913.5,0.68711299]
[1768070639560,0.19035793,914.74,913.51,0.68711299]
[1768070639760,0.19035793,914.74,913.42,2.12]
[1768070639962,0.19035793,914.74,913.43,0.68749259]
[1768070640161,0.19035793,914.74,913.44,0.68749259]
[1768070640360,0.19035793,914.74,913.45,0.68749259]
[1768070640562,0.19035793,914.74,913.46,0.68749259]
[1768070640862,0.19035793,914.74,913.47,0.68749259]
[1768070641062,0.19035793,914.74,913.48,0.68749259]
[1768070641359,0.19035793,914.74,913.49,0.68749259]
[1768070641562,0.19035793,914.74,913.42,2.12]
[1768070641563,0.19035793,914.74,913.5,0.68749259]
[1768070641759,0.19035793,914.74,913.51,0.68749259]
[1768070641964,0.19035793,914.74,913.52,0.68749259]
[1768070642162,0.19035793,914.74,913.06,1.09936892]
[1768070642163,0.19035793,914.74,913.23,0.80931533]
[1768070642363,0.19035793,914.74,913.24,0.68770953]
[1768070642658,0.19035793,914.74,913.25,0.68770953]
[1768070642858,0.19035793,914.74,913.26,0.68770953]
[1768070643064,0.19035793,914.74,913.27,0.68770953]
[1768070643362,0.19035793,914.74,913.28,0.68770953]
[1768070643558,0.19035793,914.74,913.06,0.80931533]
[1768070643559,0.19035793,914.74,913.29,0.68770953]
[1768070643862,0.19035793,914.74,913.3,0.68770953]
[1768070644060,0.19035793,914.74,913.31,0.68770953]
[1768070644263,0.19035793,914.74,913.32,0.68770953]
[1768070644458,0.19035793,914.74,913.33,0.68770953]
[1768070644662,0.19035793,914.74,913.03,0.80931533]
[1768070644859,0.19035793,914.74,913.04,0.6876409]
[1768070645058,0.19035793,914.74,913.05,0.6876409]
[1768070645358,0.19035793,914.74,913.06,0.6876409]
[1768070645559,0.19035793,914.74,913.07,0.6876409]
[1768070645762,0.19035793,914.74,913.08,0.6876409]
[1768070645962,0.19035793,914.74,913.09,0.6876409]
[1768070646258,0.19035793,914.74,913.1,0.6876409]
[1768070646462,0.19035793,914.74,913.11,0.6876409]
[1768070646663,0.19035793,914.74,913.12,0.6876409]
[1768070646965,0.19035793,914.74,913.13,0.6876409]
[1768070647260,0.19035793,914.74,913.14,0.6876409]
[1768070647460,0.19035793,914.74,913.15,0.6876409]
[1768070647661,0.19035793,914.74,913.16,0.6876409]
[1768070647860,0.19035793,914.74,913.17,0.6876409]
[1768070648061,0.19035793,914.74,913.18,0.6876409]
[1768070648261,0.19035793,914.74,913.19,0.6876409]
[1768070648565,0.19035793,914.74,913.2,0.6876409]
[1768070648860,0.19035793,914.74,913.21,0.6876409]
[1768070649060,0.19035793,914.74,913.22,0.6876409]
[1768070649361,0.19035793,914.74,913.23,0.6876409]
[1768070649662,0.19035793,914.74,913.24,0.6876409]
[1768070649862,0.19035793,914.74,913.25,0.6876409]
[1768070650161,0.19035793,914.74,913.26,0.6876409]
[1768070650364,0.19035793,914.74,913.27,0.6876409]
[1768070650565,0.19035793,914.74,913.28,0.6876409]
[1768070650767,0.19035793,914.74,913.29,0.6876409]
[1768070650967,0.19035793,914.74,913.3,0.6876409]
[1768070651167,0.19035793,914.74,913.06,2.115]
[1768070651365,0.19035793,914.74,913.07,0.68752074]
[1768070651563,0.19035793,914.74,913.08,0.68752074]
[1768070651765,0.19035793,914.74,913.09,0.68752074]
[1768070651965,0.19035793,914.74,913.1,0.68752074]
[1768070652168,0.19035793,914.74,913.11,0.68752074]
[1768070652368,0.19035793,914.74,913.12,0.68752074]
[1768070652568,0.19035793,914.74,913.13,0.68752074]
[1768070652866,0.19035793,914.74,913.14,0.68752074]
[1768070653066,0.19035793,914.74,913.15,0.68752074]
[1768070653270,0.19035793,914.74,913.16,0.68752074]
[1768070653465,0.19035793,914.74,913.17,0.68752074]
[1768070653669,0.19035793,914.74,913.18,0.68752074]
[1768070653865,0.19035793,914.74,913.19,0.68752074]
[1768070654070,0.19035793,914.74,913.2,0.68752074]
[1768070654366,0.19035793,914.74,913.21,0.68752074]
[1768070654567,0.19035793,914.74,913.22,0.68752074]
[1768070654771,0.19035793,914.74,913.23,0.68752074]
[1768070654971,0.19035793,914.74,913.24,0.68752074]
[1768070655170,0.19035793,914.74,913.25,0.68752074]
[1768070655368,0.19035793,914.74,913.06,2.115]
[1768070655369,0.19035793,914.74,913.26,0.68752074]
[1768070655668,0.19035793,914.74,913.27,0.68752074]
[1768070655871,0.19035793,914.74,913.28,0.68752074]
[1768070656172,0.19035793,914.74,913.29,0.68752074]
[1768070656371,0.19035793,914.74,913.3,0.68752074]
[1768070656570,0.19035793,914.74,913.06,2.115]
[1768070656769,0.19035793,914.74,913.07,0.68734844]
[1768070656973,0.19035793,914.74,913.08,0.68734844]
[1768070657168,0.19035793,914.74,913.09,0.68734844]
[1768070657370,0.19035793,914.74,913.1,0.68734844]
[1768070657572,0.19035793,914.74,913.11,0.68734844]
[1768070657770,0.19035793,914.74,913.12,0.68734844]
[1768070657968,0.19035793,914.74,913.06,2.115]
[1768070657969,0.19035793,914.74,913.13,0.68734844]
[1768070658271,0.19035793,914.74,913.14,0.68734844]
[1768070658472,0.19035793,914.74,913.15,0.68734844]
[1768070658671,0.19035793,914.74,913.16,0.68734844]
[1768070658869,0.19035793,914.74,913.17,0.68734844]
[1768070659070,0.19035793,914.74,913.18,0.68734844]
[1768070659273,0.19035793,914.74,913.19,0.68734844]
[1768070659473,0.19035793,914.74,913.2,0.68734844]
[1768070659674,0.19035793,914.74,913.21,0.68734844]
[1768070659874,0.19035793,914.74,913.22,0.68734844]
[1768070660075,0.19035793,914.74,913.23,0.68734844]
[1768070660270,0.19035793,914.74,913.24,0.68734844]
[1768070660477,0.19035793,914.74,913.25,0.68734844]
[1768070660672,0.19035793,914.74,913.26,0.68734844]
[1768070660874,0.19035793,914.74,913.27,0.68734844]
[1768070661074,0.19035793,914.74,913.28,0.68734844]
[1768070661371,0.19035793,914.74,913.29,0.68734844]
[1768070661574,0.19035793,914.74,913.06,2.115]
[1768070661774,0.19035793,914.74,913.07,0.68725176]
[1768070661969,0.19035793,914.74,913.08,0.68725176]
[1768070662172,0.19035793,914.74,913.09,0.68725176]
[1768070662373,0.19035793,914.74,913.1,0.68725176]
[1768070662570,0.19035793,914.74,913.11,0.68725176]
[1768070662775,0.19035793,914.74,913.12,0.68725176]
[1768070663071,0.19035793,914.74,913.13,0.68725176]
[1768070663275,0.19035793,914.74,912.98,0.80931533]
[1768070663276,0.19035793,914.74,913.14,0.68725176]
[1768070663475,0.19035793,914.74,913.15,0.68725176]
[1768070663672,0.19035793,914.74,913.16,0.68725176]
[1768070663975,0.19035793,914.74,913.17,0.68725176]
[1768070664178,0.19035793,914.74,913.18,0.68725176]
[1768070664471,0.19035793,914.74,913.19,0.68725176]
[1768070664774,0.19035793,914.74,913.2,0.68725176]
[1768070664971,0.19035793,914.74,913.21,0.68725176]
[1768070665175,0.19035793,914.74,913.22,0.68725176]
[1768070665376,0.19035793,914.74,913.23,0.68725176]
[1768070665576,0.19035793,914.74,913.21,1.822]
[1768070684184,0.19035793,914.74,913.22,0.68813868]
[1768070684390,0.19035793,914.74,913.21,1.822]
[1768070684587,0.19035793,914.74,913.22,0.6881497]
[1768070684791,0.19035793,914.74,913.21,1.822]
[1768070684986,0.19035793,914.74,913.22,0.6881497]
[1768070685186,0.19035793,914.74,913.21,1.822]
[1768070685386,0.19035793,914.74,913.22,0.68814843]
[1768070685586,0.19035793,914.74,913.21,1.822]
[1768070686089,0.19035793,914.74,913.22,0.68842222]
[1768070686290,0.19035793,914.74,913.21,1.822]
[1768070686490,0.19035793,914.74,913.22,0.68841961]
[1768070686786,0.19035793,914.74,913.21,1.822]
[1768070686987,0.19035793,914.74,913.22,0.68841931]
[1768070687186,0.19035793,914.74,913.23,0.68864592]
[1768070687386,0.19035793,914.74,913.21,1.822]
[1768070687587,0.19035793,914.74,913.22,0.68864592]
[1768070687788,0.19035793,914.74,913.23,0.68864592]
[1768070687993,0.19035793,914.74,913.21,1.822]
[1768070688196,0.19035793,914.74,913.22,0.6886516]
[1768070688392,0.19035793,914.74,913.23,0.6886516]
[1768070688594,0.19035793,914.74,913.21,1.822]
[1768070688794,0.19035793,914.74,913.22,0.68864725]
[1768070688992,0.19035793,914.74,913.23,0.68864725]
[1768070689295,0.19035793,914.74,913.21,1.822]
[1768070689492,0.19035793,914.74,913.22,0.68865114]
[1768070689693,0.19035793,914.74,913.23,0.68865114]
[1768070689896,0.19035793,914.74,913.21,1.822]
[1768070690092,0.19035793,914.74,913.22,0.68865209]
[1768070690396,0.19035793,914.74,913.21,1.822]
[1768070690397,0.19035793,914.74,913.23,0.68865209]
[1768070690597,0.19035793,914.74,913.21,1.822]
[1768070690798,0.19035793,914.74,913.22,0.6886461]
[1768070690999,0.19035793,914.74,913.23,0.6886461]
[1768070691197,0.19035793,914.74,913.21,1.822]
[1768070691398,0.19035793,914.74,913.22,0.68864157]
[1768070691597,0.19035793,914.74,913.23,0.68864157]
[1768070691802,0.19035793,914.74,913.21,1.822]
[1768070692003,0.19035793,914.74,913.22,0.68864157]
[1768070692203,0.19035793,914.74,913.23,0.68864157]
[1768070692403,0.19035793,914.74,913.21,1.822]
[1768070692702,0.19035793,914.74,913.22,0.68863844]
[1768070692902,0.19035793,914.74,913.23,0.68863844]
[1768070693103,0.19035793,914.74,913.21,1.822]
[1768070693300,0.19035793,914.74,913.22,0.68864512]
[1768070693501,0.19035793,914.74,913.23,0.68864512]
[1768070693702,0.19035793,914.74,913.21,1.822]